bitfinex-derivatives/quotes_ETHF0:USTF0_20250626
["timestamp","ask_amount","ask_price","bid_price","bid_amount"]
[1750912435423,0.80599,2480.1,2479.7,4.01389]
[1750912435625,0.80604,2480.0,2479.7,3.2078]
[1750912435827,2.11945,2479.9,2479.7,6.474]
[1750912436125,2.84235,2479.9,2479.7,6.474]
[1750912436625,2.84235,2479.9,2479.6,9.86032043]
[1750912437028,0.80609,2479.8,2479.6,6.474]
[1750912437223,1.4053,2479.8,2479.6,6.474]
[1750912437432,1.4053,2479.8,2479.6,7.28012]
[1750912438022,0.7229,2479.9,2479.6,7.28012]
[1750912438228,1.52894,2479.9,2479.6,6.474]
[1750912438427,0.7229,2479.9,2479.6,9.86032043]
[1750912438625,1.52895,2479.9,2479.6,9.05418043]
[1750912438928,0.80609,2479.8,2479.6,9.05418043]
[1750912439132,2.93426,2479.9,2479.6,9.05418043]
[1750912439427,2.93426,2479.9,2479.6,9.86032043]
[1750912439730,2.93426,2479.9,2479.6,6.474]
[1750912439731,0.80608,2479.8,2479.6,6.474]
[1750912440025,2.18768,2479.8,2479.4,6.59417043]
[1750912440216,1.9541374,2479.7,2479.5,6.474]
[1750912440419,2.18773,2479.7,2479.5,6.474]
[1750912441430,1.1492387,2479.6,2479.5,6.474]
[1750912441632,1.9553787,2479.6,2479.5,6.474]
[1750912442131,1.1492387,2479.6,2479.5,6.474]
[1750912442834,1.1492387,2479.6,2479.5,7.28017]
[1750912443028,0.80608,2479.8,2479.5,7.28017]
[1750912443224,1.14956455,2479.7,2479.5,7.28017]
[1750912443424,1.14956455,2479.6,2479.4,12.26198043]
[1750912443628,0.80612,2479.7,2479.4,13.06817043]
[1750912443827,1.14970002,2479.6,2479.4,13.06817043]
[1750912444021,0.80614,2479.6,2479.4,13.06817043]
[1750912444234,0.6786,2479.5,2479.4,13.06817043]
[1750912444425,0.6786,2479.5,2479.4,9.6818]
[1750912444629,0.806,2480.1,2479.8,0.80606]
[1750912444932,1.82887426,2480.0,2479.9,0.80604]
[1750912445133,1.82887426,2480.0,2479.8,3.38623043]
[1750912445332,1.15027426,2479.9,2479.8,3.38623043]
[1750912446331,1.15027426,2479.9,2479.8,4.77443043]
[1750912447131,1.15027426,2479.9,2479.8,11.24843043]
[1750912448122,1.15027426,2479.9,2479.8,3.38623043]
[1750912448322,1.95631426,2479.9,2479.7,3.2078]
[1750912448528,1.95635426,2479.8,2479.7,9.6808]
[1750912449232,1.95635426,2479.8,2479.7,3.2078]
[1750912449635,1.15027426,2479.8,2479.4,0.80619]
[1750912449823,2.64080426,2479.7,2479.5,7.27917]
[1750912450028,1.15027426,2479.6,2479.5,7.27917]
[1750912450433,1.15027426,2479.6,2479.5,6.473]
[1750912450729,1.15027426,2479.6,2479.3,3.2078]
[1750912450934,0.80629,2479.2,2479.0,3.2078]
[1750912451134,1.85127426,2479.1,2478.8,2.58018043]
[1750912451339,1.95662426,2479.0,2478.8,2.58018043]
[1750912451529,1.15027426,2478.9,2478.8,2.58018043]
[1750912452128,1.15027426,2478.9,2478.8,0.8064]
[1750912452335,1.15027426,2478.9,2478.7,56.1548]
[1750912452527,48.80635,2479.3,2478.8,1.3958]
[1750912452730,1.15107372,2479.2,2479.0,0.80631]
[1750912452928,1.15107372,2479.1,2479.0,5.40991]
[1750912453129,48.80635,2479.3,2479.2,0.80627]
[1750912453328,49.95746292,2479.3,2479.2,0.80627]
[1750912453543,49.95746292,2479.3,2479.1,7.28029]
[1750912453735,1.15111292,2479.2,2479.1,7.2803]
[1750912454125,1.15111292,2479.2,2479.1,12.2803]
[1750912454330,48.80635,2479.3,2479.2,0.80627]
[1750912454531,49.95915903,2479.3,2479.2,8.1429697]
[1750912454739,48.80635,2479.3,2479.2,8.1429697]
[1750912455234,96.61412,2479.6,2479.5,0.80617]
[1750912455436,97.76666127,2479.6,2479.5,7.28017]
[1750912455836,97.76666127,2479.6,2479.5,8.59907]
[1750912456030,97.76666127,2479.6,2479.5,13.8472697]
[1750912456238,97.76666127,2479.6,2479.5,14.5610697]
[1750912458240,96.61412,2479.6,2479.5,14.5610697]
[1750912460235,96.61412,2479.6,2479.5,19.5610697]
[1750912460441,96.61412,2479.6,2479.5,14.5610697]
[1750912461139,82.76221624,2479.6,2479.5,19.5610697]
[1750912462338,82.76221624,2479.6,2479.5,14.5610697]
[1750912462541,82.76221624,2479.6,2479.5,19.5610697]
[1750912462843,80.89904624,2479.6,2479.5,19.5610697]
[1750912463140,79.70622624,2479.6,2479.5,19.5610697]
[1750912463640,77.97644624,2479.6,2479.5,19.5610697]
[1750912463840,76.96888624,2479.6,2479.5,19.5610697]
[1750912464040,74.66713624,2479.6,2479.5,19.5610697]
[1750912464235,72.79366624,2479.6,2479.5,19.5610697]
[1750912464431,59.58384447,2479.6,2479.5,19.5610697]
[1750912464841,57.67905447,2479.6,2479.5,19.5610697]
[1750912465042,55.94294447,2479.6,2479.5,19.5610697]
[1750912465338,54.38683447,2479.6,2479.5,19.5610697]
[1750912465541,53.14747447,2479.6,2479.5,19.5610697]
[1750912465732,52.15125447,2479.6,2479.5,19.5610697]
[1750912466046,48.43808447,2479.6,2479.5,14.31287]
[1750912466238,45.64825447,2479.6,2479.5,14.31287]
[1750912466435,20.46994671,2479.6,2479.5,14.31287]
[1750912466641,19.31083671,2479.6,2479.5,14.31287]
[1750912467144,10.91958884,2479.6,2479.5,14.31287]
[1750912467340,7.78858884,2479.6,2479.5,14.31287]
[1750912467547,0.73672884,2479.6,2479.5,14.31287]
[1750912467845,8.84e-06,2479.6,2479.5,14.31287]
[1750912469447,2.16014,2480.9,2480.7,0.80578]
[1750912469951,2.82225,2480.8,2480.6,10.4856]
[1750912470144,2.0165,2480.7,2480.6,10.4856]
[1750912471244,2.0165,2480.7,2480.6,9.6798]
[1750912471543,2.82228,2480.7,2480.6,9.7168]
[1750912471745,2.82228,2480.7,2480.6,10.52262]
[1750912471746,2.0165,2480.7,2480.6,10.52262]
[1750912472143,2.82228,2480.7,2480.6,9.7168]
[1750912472452,2.82228,2480.7,2480.6,3.2078]
[1750912472639,2.82228,2480.7,2480.6,9.7168]
[1750912472949,2.82228,2480.7,2480.6,3.2078]
[1750912473249,7.0165,2480.7,2480.2,3.2078]
[1750912473547,0.80589,2480.4,2480.3,6.509]
[1750912473853,0.80587,2480.5,2480.3,7.31491]
[1750912474044,2.82238,2480.4,2480.3,6.509]
[1750912474444,0.80591,2480.3,2480.2,3.2078]
[1750912474748,4.15551,2480.3,2480.2,9.7168]
[1750912476548,3.3496,2480.3,2480.2,9.7168]
[1750912476853,9.15551,2480.3,2480.2,8.6299]
[1750912477545,12.36331,2480.3,2480.2,6.509]
[1750912477741,11.5574,2480.3,2479.7,3.2078]
[1750912477940,2.0165,2479.8,2479.7,10.52291]
[1750912478145,2.0165,2479.8,2479.7,9.7168]
[1750912478848,2.82258,2479.8,2479.7,9.7168]
[1750912479452,3.3711,2479.8,2479.7,9.7168]
[1750912479653,3.3711,2479.8,2479.7,10.52291]
[1750912479844,4.0457,2479.8,2479.7,10.52291]
[1750912480152,0.6746,2479.8,2479.7,10.52291]
[1750912482252,2.6911,2479.8,2479.7,10.52291]
[1750912482552,4.0955,2479.8,2479.7,9.7168]
[1750912483653,4.0955,2479.8,2479.7,10.52291]
[1750912484553,4.0955,2479.8,2479.7,9.7168]
[1750912484858,4.90158,2479.8,2479.7,9.7168]
[1750912485450,4.0955,2479.8,2479.7,10.52291]
[1750912486655,4.0955,2479.8,2479.7,9.7168]
[1750912486853,4.90158,2479.8,2479.7,3.2078]
[1750912487047,4.90158,2479.8,2479.7,9.7178]
[1750912488146,2.6911,2479.8,2479.7,10.52391]
[1750912490756,0.6746,2479.8,2479.7,10.52391]
[1750912498270,0.6746,2479.8,2479.7,13.09907568]
[1750912498980,0.6746,2479.8,2479.7,10.52391]
[1750912499582,2.6911,2479.8,2479.7,4.01391]
[1750912499779,2.6911,2479.8,2479.7,35.34691]
[1750912499982,3.49718,2479.8,2479.7,35.31391]
[1750912500283,11.42132344,2479.8,2479.5,6.482]
[1750912500488,0.80617,2479.5,2479.4,3.2078]
[1750912500783,2.82267,2479.5,2479.4,6.482]
[1750912501173,0.7219,2479.7,2479.4,6.482]
[1750912501378,2.0165,2479.5,2479.4,7.28821]
[1750912501684,0.6746,2479.8,2479.7,0.80611]
[1750912501882,2.0165,2479.7,2479.6,27.41516568]
[1750912502182,2.0165,2479.7,2479.6,32.86350568]
[1750912502382,0.6746,2479.8,2479.7,0.80611]
[1750912502586,1.83067115,2479.8,2479.7,0.80611]
[1750912502787,3.17257115,2479.8,2479.7,0.80611]
[1750912503679,3.17257115,2479.8,2479.7,2.18021]
[1750912504077,1.15607115,2479.8,2479.7,2.18021]
[1750912504288,0.7246,2480.0,2479.7,1.3741]
[1750912504485,2.0165,2479.9,2479.8,11.23734568]
[1750912504686,0.8059,2480.4,2480.1,0.80595]
[1750912504882,1.15728673,2480.3,2480.2,6.482]
[1750912505283,3.17378673,2480.3,2480.2,6.482]
[1750912505485,3.17378673,2480.3,2480.2,7.28795]
[1750912505688,3.17378673,2480.3,2480.2,6.482]
[1750912506078,3.17378673,2480.3,2480.2,7.28795]
[1750912506276,3.17378673,2480.3,2480.2,6.482]
[1750912506592,3.97969673,2480.3,2480.2,6.482]
[1750912507289,3.17378673,2480.3,2480.2,7.28795]
[1750912508284,3.17378673,2480.3,2480.2,9.86311568]
[1750912508588,1.15728673,2480.3,2480.2,9.86311568]
[1750912508790,1.15728673,2480.3,2480.2,11.26371568]
[1750912509176,0.80574,2480.9,2480.7,0.80577]
[1750912509379,1.15797238,2480.8,2480.7,0.80577]
[1750912509575,3.17447238,2480.8,2480.6,6.482]
[1750912509780,3.17447238,2480.7,2480.6,6.482]
[1750912510188,3.17447238,2480.7,2480.6,7.28782]
[1750912510387,3.17447238,2480.7,2480.6,0.80582]
[1750912510687,3.17447238,2480.7,2480.6,32.12482]
[1750912510990,1.15797238,2480.7,2480.6,34.69998568]
[1750912511191,5.36289,2481.0,2480.8,0.80573]
[1750912511488,1.15726249,2480.9,2480.8,0.80573]
[1750912511691,3.17376249,2480.9,2480.8,0.80573]
[1750912512891,3.17376249,2480.9,2480.8,32.12375]
[1750912513297,3.17376249,2480.9,2480.8,0.80575]
[1750912513488,3.17376249,2480.9,2480.8,32.11575]
[1750912513680,3.17376249,2480.9,2480.8,31.31]
[1750912514183,3.17376249,2480.9,2480.8,32.11575]
[1750912514593,3.17376249,2480.9,2480.8,32.11075]
[1750912514985,3.97948249,2480.9,2480.8,31.305]
[1750912515180,3.97948249,2480.9,2480.7,0.80576]
[1750912515386,0.80572,2480.9,2480.8,31.299]
[1750912515588,1.1540422,2480.9,2480.8,32.10475]
[1750912515789,3.1705422,2480.9,2480.8,32.10475]
[1750912516281,3.9762722,2480.9,2480.8,31.296]
[1750912516483,2.82223,2480.9,2480.8,31.296]
[1750912516685,3.97594871,2480.9,2480.7,4.01357]
[1750912516997,2.0165,2480.8,2480.7,4.01358]
[1750912517291,2.0165,2480.8,2480.7,35.30358]
[1750912519992,2.82225,2480.8,2480.7,31.288]
[1750912520192,2.0165,2480.8,2480.7,32.09378]
[1750912520394,2.82225,2480.8,2480.7,32.09378]
[1750912520591,2.0165,2480.8,2480.7,32.09378]
[1750912521294,0.8058,2480.7,2480.6,0.80581]
[1750912521497,2.83867,2480.8,2480.6,0.80581]
[1750912521693,2.0165,2480.7,2480.6,32.09381]
[1750912522493,2.0165,2480.7,2480.6,0.80581]
[1750912522696,2.0165,2480.7,2480.6,32.09281]
[1750912523798,2.0165,2480.7,2480.6,0.80581]
[1750912523998,2.0165,2480.7,2480.6,32.09281]
[1750912524693,2.0165,2480.7,2480.6,0.80581]
[1750912524887,2.82228,2480.7,2480.6,31.287]
[1750912525084,2.82228,2480.7,2480.6,32.09282]
[1750912525287,2.0165,2480.7,2480.4,3.2078]
[1750912525492,2.2364,2480.7,2480.6,6.48]
[1750912525692,1.4306,2480.7,2480.6,32.09282]
[1750912525895,4.25288,2480.7,2480.6,0.80582]
[1750912526100,4.25288,2480.7,2480.6,32.09182]
[1750912526803,3.4471,2480.7,2480.6,32.09182]
[1750912527094,4.25288,2480.7,2480.6,0.80582]
[1750912527300,3.4471,2480.7,2480.6,0.80582]
[1750912527493,3.4471,2480.7,2480.6,32.09182]
[1750912527694,0.7126,2480.8,2480.7,0.80578]
[1750912527903,0.80567,2481.1,2480.9,0.8057]
[1750912528095,1.15292132,2481.0,2480.9,0.8057]
[1750912528297,3.16942132,2481.0,2480.9,0.8057]
[1750912529200,3.16942132,2481.0,2480.9,2.1982]
[1750912530294,2.0165,2481.0,2480.9,2.1982]
[1750912530493,3.2078,2481.3,2481.2,0.80562]
[1750912531000,6.37929328,2481.3,2481.2,0.80562]
[1750912531205,3.17149328,2481.3,2481.2,0.80562]
[1750912531502,3.9,2481.7,2481.4,0.80554]
[1750912531704,1.15550403,2481.6,2481.4,0.80554]
[1750912531899,3.17200403,2481.5,2481.4,0.80554]
[1750912532101,3.17200403,2481.5,2481.4,32.08454]
[1750912533696,1.15550403,2481.5,2481.4,32.08454]
[1750912533896,0.80541,2481.9,2481.6,0.80548]
[1750912534096,1.1564847,2481.8,2481.7,0.80545]
[1750912534498,3.1729847,2481.8,2481.7,0.80545]
[1750912534698,3.1729847,2481.8,2481.6,24.804]
[1750912534905,2.0165,2481.7,2481.6,25.60947]
[1750912535306,2.82196,2481.7,2481.6,24.804]
[1750912535598,0.8055,2481.6,2481.3,4.01336]
[1750912535798,2.82206,2481.4,2481.3,3.2078]
[1750912536006,0.80562,2481.2,2481.0,10.48646]
[1750912536204,2.0165,2481.1,2481.0,10.48646]
[1750912536708,2.82215,2481.1,2481.0,9.6808]
[1750912537804,3.97782642,2481.1,2481.0,6.473]
[1750912538205,2.82215,2481.1,2481.0,6.473]
[1750912538508,2.82215,2481.1,2481.0,7.27869]
[1750912538509,2.0165,2481.1,2481.0,7.27869]
[1750912538695,2.0165,2481.1,2481.0,8.70539]
[1750912538905,5.78296568,2481.8,2481.0,13.68266568]
[1750912539095,2.0165,2481.4,2481.3,3.2078]
[1750912539404,3.17247178,2481.4,2481.3,36.71409]
[1750912539606,1.15597178,2481.4,2481.3,36.71409]
[1750912541809,0.80547,2481.7,2481.5,0.8055]
[1750912542007,1.15641892,2481.6,2481.5,24.8]
[1750912542211,3.17291892,2481.6,2481.5,24.8]
[1750912542408,3.17291892,2481.6,2481.5,25.60552]
[1750912542607,3.17291892,2481.6,2481.5,24.8]
[1750912542914,3.97840892,2481.6,2481.5,24.8]
[1750912543409,3.17291892,2481.6,2481.2,2.57516568]
[1750912543715,2.0165,2481.3,2481.1,0.80565]
[1750912543903,0.80559,2481.3,2481.2,31.272]
[1750912544210,0.80549,2481.7,2481.2,33.84716568]
[1750912544406,2.0165,2481.5,2481.4,0.80555]
[1750912544606,3.17344265,2481.5,2481.4,0.80555]
[1750912546810,3.2078,2482.1,2481.6,0.80547]
[1750912547017,3.2078,2482.1,2481.5,1.5048]
[1750912547018,2.0165,2481.6,2481.5,1.5048]
[1750912547205,2.0165,2481.6,2481.5,32.7758]
[1750912547915,2.0165,2481.6,2481.5,1.5048]
[1750912548110,2.0165,2481.6,2481.5,32.7758]
[1750912548312,2.0165,2481.6,2481.5,1.5048]
[1750912548615,2.0165,2481.6,2481.5,32.7758]
[1750912548911,2.0165,2481.6,2481.5,1.5048]
[1750912549115,2.0165,2481.6,2481.5,32.7758]
[1750912550111,1.3086,2482.0,2481.5,31.9693]
[1750912550312,0.72,2482.2,2482.0,0.80535]
[1750912550517,1.15628341,2482.1,2482.0,0.80535]
[1750912550717,3.17278341,2482.1,2482.0,0.80535]
[1750912552109,4.01305,2482.4,2482.1,0.80531]
[1750912552416,2.0165,2482.2,2482.1,0.80533]
[1750912556022,0.80528,2482.3,2482.1,0.80532]
[1750912556208,2.0165,2482.2,2482.1,25.59832]
[1750912556413,0.80519,2482.6,2482.1,33.84016568]
[1750912556615,2.0165,2482.3,2482.2,4.0131]
[1750912556814,0.80519,2482.6,2482.4,0.80521]
[1750912557114,3.17159154,2482.5,2482.4,25.59823]
[1750912557617,3.8923,2482.7,2482.6,0.80517]
[1750912557917,4.36303749,2482.7,2482.6,0.80517]
[1750912558218,3.17173749,2482.7,2482.6,0.80517]
[1750912559121,3.97686749,2482.7,2482.5,7.27718]
[1750912559321,2.0165,2482.7,2482.6,0.80517]
[1750912559622,0.80509,2482.9,2482.7,0.80513]
[1750912559815,3.17108708,2482.8,2482.7,0.80513]
[1750912560119,3.17103817,2482.8,2482.7,25.59613]
[1750912560523,3.97612014,2482.8,2482.7,24.791]
[1750912560709,3.97614014,2482.8,2482.7,31.26]
[1750912561317,3.17102014,2482.8,2482.7,32.06513]
[1750912561826,2.0165,2482.8,2482.7,32.06513]
[1750912563422,3.17928881,2483.7,2482.7,33.83516568]
[1750912563623,0.80495,2483.3,2483.1,0.80499]
[1750912563926,2.0165,2482.9,2482.8,3.2078]
[1750912564126,2.0165,2482.9,2482.8,35.26689]
[1750912564327,3.25326568,2483.2,2482.8,35.26689]
[1750912564328,0.805,2483.1,2482.8,34.4618]
[1750912564527,2.0165,2482.9,2482.8,34.4618]
[1750912564928,0.6781,2483.2,2482.9,0.80506]
[1750912565128,0.80501,2483.1,2482.9,0.80506]
[1750912565428,2.0165,2483.0,2482.9,0.80506]
[1750912565625,0.80507,2482.9,2482.8,3.2078]
[1750912565821,3.51017,2482.9,2482.8,3.2078]
[1750912566429,2.7051,2482.9,2482.8,4.0129]
[1750912566629,0.6781,2483.2,2483.1,0.805]
[1750912566826,1.83007842,2483.2,2483.1,0.805]
[1750912567022,2.6946,2483.2,2483.1,0.805]
[1750912567326,3.2078,2483.4,2483.3,0.80494]
[1750912567726,3.8964,2483.7,2483.3,2.57516568]
[1750912567916,2.0165,2483.5,2483.3,2.57516568]
[1750912568229,2.0165,2483.5,2483.4,6.468]
[1750912568526,3.2078,2483.7,2483.6,0.80484]
[1750912568721,5.2243,2483.7,2483.6,0.80484]
[1750912569828,2.0165,2483.7,2483.6,0.80484]
[1750912570123,0.6966,2483.8,2483.5,27.36016568]
[1750912570124,0.6966,2483.8,2483.7,0.80481]
[1750912571327,0.6966,2483.8,2483.7,3.37997568]
[1750912571528,3.2078,2484.2,2483.7,7.57516568]
[1750912571727,5.78296568,2484.5,2483.8,4.59136568]
[1750912571929,2.0165,2484.0,2483.8,33.83016568]
[1750912572131,2.0165,2484.1,2483.8,33.83016568]
[1750912572332,2.0165,2484.1,2484.0,0.80469]
[1750912572833,0.7049,2484.7,2484.0,2.57516568]
[1750912573130,2.0165,2484.5,2484.4,0.80458]
[1750912573523,2.0165,2484.5,2484.3,9.84576568]
[1750912573825,2.82106,2484.5,2484.3,9.84576568]
[1750912574128,2.0165,2484.5,2484.4,0.80458]
[1750912574327,0.6688,2484.6,2484.5,0.80455]
[1750912574524,0.6688,2484.6,2484.5,3.37971568]
[1750912574726,3.2078,2484.8,2484.6,0.8045]
[1750912575029,2.0165,2484.7,2484.5,2.57516568]
[1750912575230,2.0165,2484.8,2484.4,26.1195]
[1750912575535,2.0165,2484.7,2484.5,0.80454]
[1750912575727,2.0165,2484.7,2484.6,0.80452]
[1750912575927,2.57516568,2484.7,2484.3,3.2078]
[1750912576230,0.80457,2484.5,2484.4,6.466]
[1750912576431,0.6553,2484.6,2484.2,25.64563]
[1750912576432,2.82109,2484.4,2484.3,6.465]
[1750912576632,2.0165,2484.4,2484.3,6.465]
[1750912576834,1.3121,2484.6,2484.3,9.04016568]
[1750912577031,2.0165,2484.4,2484.3,9.84478568]
[1750912577533,1.3121,2484.6,2484.4,0.80457]
[1750912577839,4.01217,2485.1,2484.5,27.42416568]
[1750912578027,2.0165,2484.9,2484.8,3.37960568]
[1750912578438,3.8884,2485.1,2485.0,0.80439]
[1750912578637,5.9049,2485.1,2485.0,0.80439]
[1750912579022,5.9049,2485.1,2484.9,0.8044]
[1750912579230,5.9049,2485.1,2484.8,29.64390568]
[1750912579428,6.70927,2485.1,2484.8,29.64390568]
[1750912579832,2.0165,2485.0,2484.8,29.64390568]
[1750912580032,2.0165,2485.0,2484.9,0.80442]
[1750912580332,4.69277,2485.1,2484.9,0.80441]
[1750912580534,5.9049,2485.1,2485.0,0.80439]
[1750912580735,2.0165,2485.0,2484.9,6.464]
[1750912581134,4.69276,2485.1,2484.9,6.464]
[1750912581335,2.0165,2485.0,2484.9,6.464]
[1750912581643,2.0165,2485.0,2484.8,0.80444]
[1750912581935,3.8884,2485.1,2484.9,7.26842]
[1750912582129,2.0165,2485.0,2484.9,7.26842]
[1750912582325,2.6971,2485.1,2485.0,0.80439]
[1750912583024,2.6971,2485.1,2484.9,10.4762]
[1750912583227,2.6971,2485.1,2484.9,9.6718]
[1750912583428,2.6971,2485.1,2485.0,0.80439]
[1750912584339,0.6806,2485.1,2485.0,0.80439]
[1750912584842,0.6617,2485.3,2484.9,9.6718]
[1750912585032,2.0165,2485.2,2484.9,11.1095]
[1750912585331,2.0165,2485.2,2484.9,11.8137]
[1750912585529,2.0165,2485.2,2485.1,0.80436]
[1750912585730,2.0165,2485.1,2484.9,9.6718]
[1750912585930,2.0165,2485.1,2485.0,0.80439]
[1750912586228,0.6617,2485.3,2485.2,0.80433]
[1750912586428,2.0165,2485.1,2485.0,0.80439]
[1750912586824,0.6617,2485.3,2485.2,0.80433]
[1750912587029,1.80821571,2485.3,2485.2,0.80433]
[1750912587231,3.82471571,2485.3,2485.2,0.80433]
[1750912587429,4.62900571,2485.3,2485.1,0.80434]
[1750912587630,1.46599,2485.3,2485.1,0.80434]
[1750912587839,2.0165,2485.2,2485.1,0.80434]
[1750912588231,2.82084,2485.2,2485.0,0.80437]
[1750912588432,2.0165,2485.1,2485.0,0.80437]
[1750912589232,0.6888,2485.4,2484.9,34.4748]
[1750912589428,2.0165,2485.2,2485.1,0.80436]
[1750912589834,0.80429,2485.3,2485.1,0.80434]
[1750912590041,2.0165,2485.2,2485.1,0.80434]
[1750912590243,0.6888,2485.4,2485.3,0.80429]
[1750912590536,1.8353327,2485.4,2485.3,7.26629]
[1750912590742,3.8518327,2485.4,2485.3,7.26629]
[1750912590938,3.8518327,2485.4,2485.3,0.80429]
[1750912591238,3.8518327,2485.4,2485.3,5.80429]
[1750912591239,1.1465327,2485.4,2485.3,5.80429]
[1750912591443,0.71,2485.9,2485.2,6.5334]
[1750912591444,0.80414,2485.8,2485.2,6.5334]
[1750912591744,3.16394766,2485.7,2485.6,0.80417]
[1750912592241,1.14744766,2485.7,2485.6,0.80417]
[1750912592643,0.6714,2486.3,2486.1,0.80402]
[1750912592946,1.8086179,2486.2,2486.1,0.80402]
[1750912593136,3.8251179,2486.2,2486.1,0.80402]
[1750912593737,3.8251179,2486.2,2485.8,3.2078]
[1750912593947,1.1479179,2486.1,2486.0,0.80407]
[1750912594150,3.1644179,2486.1,2486.0,0.80407]
[1750912594342,1.1479179,2486.1,2486.0,0.80407]
[1750912594739,3.1644179,2486.1,2485.8,3.2078]
[1750912594944,1.1479179,2486.0,2485.9,6.491]
[1750912595345,3.1644179,2486.0,2485.9,6.491]
[1750912595554,3.9684879,2486.0,2485.8,3.2078]
[1750912595745,3.1644179,2485.9,2485.8,3.2078]
[1750912595943,3.1644179,2485.9,2485.8,4.01193]
[1750912596343,3.1644179,2485.9,2485.8,3.2078]
[1750912596646,1.1479179,2485.9,2485.8,4.01193]
[1750912596848,0.6607,2486.2,2486.0,0.80407]
[1750912597043,3.16549542,2486.1,2486.0,0.80407]
[1750912597437,1.14899542,2486.1,2486.0,0.80407]
[1750912601242,1.14899542,2486.1,2486.0,6.49]
[1750912601549,1.14899542,2486.1,2485.8,3.2078]
[1750912601550,0.8041,2485.9,2485.8,3.2078]
[1750912601752,2.8206,2485.9,2485.8,3.2078]
[1750912601940,3.16549542,2485.9,2485.8,3.2078]
[1750912602336,3.16549542,2485.9,2485.7,2.56302406]
[1750912602547,0.8042,2485.6,2485.5,9.6978]
[1750912602744,0.8042,2485.6,2485.5,3.2078]
[1750912602945,3.2078,2485.7,2485.1,6.49]
[1750912603145,2.01013,2486.1,2485.1,6.49]
[1750912603146,7.97767462,2486.4,2485.1,6.49]
[1750912603147,0.40166683,2487.9,2486.2,2.01]
[1750912603347,0.6742,2487.8,2487.6,3.2078]
[1750912603551,0.6742,2487.8,2486.4,2.39219216]
[1750912603552,5.77082406,2487.7,2487.0,5.82249608]
[1750912603741,2.56302406,2487.3,2487.1,1.25430686]
[1750912603940,2.56302406,2487.3,2486.4,2.39219216]
[1750912603941,12.6799,2487.2,2486.3,1.19675328]
[1750912604145,2.56302406,2486.5,2486.1,3.2078]
[1750912604344,2.6769,2486.4,2486.1,3.2078]
[1750912604545,3.48085,2486.4,2486.1,3.2078]
[1750912604751,0.80383,2486.8,2486.1,3.2078]
[1750912604948,1.47365,2486.7,2486.4,3.2078]
[1750912605344,2.0137,2486.7,2486.4,3.2078]
[1750912606154,2.81754,2486.7,2486.4,3.2078]
[1750912606354,2.0137,2486.7,2486.4,3.2078]
[1750912606651,2.0137,2486.7,2486.4,4.80259477]
[1750912606849,2.0137,2486.7,2486.5,1.59479477]
[1750912607654,2.0137,2486.7,2486.4,4.80259477]
[1750912607855,0.80394,2486.4,2486.3,1.59479477]
[1750912608055,2.0137,2486.7,2486.2,1.59479477]
[1750912608259,1.4,2486.3,2486.2,1.59479477]
[1750912608559,6.787,2486.6,2486.2,1.59479477]
[1750912608760,0.80397,2486.3,2486.2,1.59479477]
[1750912608954,8.42653748,2486.5,2485.8,4.80259477]
[1750912609259,0.8041,2485.9,2485.8,3.2078]
[1750912609455,0.8041,2485.9,2485.7,1.59479477]
[1750912609657,2.91713,2485.8,2485.7,1.59479477]
[1750912610047,7.113,2485.8,2485.5,1.59872531]
[1750912610357,7.113,2485.8,2485.3,2.39219216]
[1750912610358,0.80426,2485.4,2485.3,1.59872531]
[1750912611058,0.80429,2485.3,2485.2,4.80652531]
[1750912611261,0.80433,2485.2,2485.1,1.59872531]
[1750912611458,0.80436,2485.1,2485.0,1.59872531]
[1750912611756,8.2216,2485.2,2484.9,3.2078]
[1750912611757,0.80439,2485.0,2484.9,4.80652531]
[1750912612349,6.787,2485.2,2484.9,4.0122]
[1750912612558,6.787,2485.2,2484.9,4.80652531]
[1750912612758,7.59136,2485.2,2484.9,4.80652531]
[1750912612955,0.80436,2485.1,2484.9,4.80652531]
[1750912613256,6.787,2485.2,2485.0,1.59872531]
[1750912613658,8.2072,2485.2,2485.0,1.59872531]
[1750912614352,0.80436,2485.1,2485.0,1.59872531]
[1750912614547,0.80439,2485.0,2484.9,4.80652531]
[1750912614850,2.22459,2485.0,2484.9,4.80652531]
[1750912615051,2.22459,2485.0,2484.9,1.59872531]
[1750912615246,0.6631,2485.3,2484.9,1.59872531]
[1750912615462,6.788,2485.2,2485.0,1.59872531]
[1750912615654,1.46741,2485.3,2485.0,1.59872531]
[1750912615859,6.788,2485.2,2485.1,1.27641562]
[1750912616450,7.59233,2485.2,2485.1,1.27641562]
[1750912617952,1.46741,2485.3,2485.1,1.27641562]
[1750912618155,1.46741,2485.3,2485.2,1.27641562]
[1750912618360,2.87111,2485.3,2485.2,1.27641562]
[1750912620567,0.80437,2485.1,2484.8,4.01224]
[1750912620865,2.0668,2485.3,2484.8,4.01224]
[1750912620866,0.8044,2485.0,2484.8,3.2078]
[1750912621057,0.80442,2484.9,2484.8,3.2078]
[1750912621566,2.0668,2485.3,2484.8,3.2078]
[1750912621865,2.0668,2485.3,2484.9,1.2540528]
[1750912622056,2.0668,2485.3,2485.0,1.2540528]
[1750912622268,0.80433,2485.2,2485.1,1.2540528]
[1750912622564,2.21463,2485.2,2485.1,1.2540528]
[1750912622766,7.21463,2485.2,2485.1,1.2540528]
[1750912623474,7.21463,2485.2,2484.8,3.2078]
[1750912623475,0.80442,2484.9,2484.8,3.2078]
[1750912623766,0.80442,2484.9,2484.8,4.46142805]
[1750912624266,1.46332,2484.9,2484.8,4.46142805]
[1750912625067,1.46332,2484.9,2484.8,1.25362805]
[1750912625565,2.85632,2484.9,2484.8,1.25362805]
[1750912627260,1.46332,2484.9,2484.8,1.25362805]
[1750912627659,0.80455,2484.5,2484.4,4.80513121]
[1750912627970,0.80455,2484.5,2484.4,3.2078]